bitfinex/quotes_BTCUSD_20251016
["timestamp","ask_amount","ask_price","bid_price","bid_amount"]
[1760653282030,0.00532888,108320.0,108310.0,0.22626995]
[1760653282231,0.33906066,108330.0,108320.0,0.1846381]
[1760653282409,0.00015046,108330.0,108320.0,0.1846381]
[1760653282614,0.18477152,108330.0,108320.0,0.21443362]
[1760653283721,0.00015046,108330.0,108320.0,0.21443362]
[1760653283924,0.18477152,108330.0,108320.0,0.21443362]
[1760653284165,0.18477152,108330.0,108320.0,0.02979552]
[1760653284311,0.18477152,108330.0,108310.0,0.1938879]
[1760653284661,0.18477152,108330.0,108310.0,0.28357802]
[1760653285233,0.18477152,108330.0,108320.0,0.1846381]
[1760653287896,0.18477152,108330.0,108310.0,0.28357802]
[1760653288104,0.18477152,108330.0,108310.0,0.3313264]
[1760653288664,0.18477152,108330.0,108320.0,0.1846381]
[1760653289725,0.68477152,108330.0,108320.0,0.1846381]
[1760653290880,0.1846381,108320.0,108310.0,0.23240353]
[1760653291020,0.1846381,108320.0,108310.0,0.18465515]
[1760653292487,0.1846381,108320.0,108310.0,0.18565515]
[1760653294391,0.68477152,108330.0,108320.0,0.1846381]
[1760653295031,0.50015046,108330.0,108320.0,0.1846381]
[1760653295232,0.68477152,108330.0,108320.0,0.1846381]
[1760653295883,0.50015046,108330.0,108320.0,0.22166743]
[1760653296090,0.68477152,108330.0,108320.0,0.22166743]
[1760653298987,0.50015046,108330.0,108320.0,0.22166743]
[1760653300197,0.68477152,108330.0,108320.0,0.22166743]
[1760653302583,0.50015046,108330.0,108320.0,0.22166743]
[1760653304021,0.68477152,108330.0,108320.0,0.22166743]
[1760653306279,0.47256746,108330.0,108320.0,0.22166743]
[1760653307484,0.47256746,108330.0,108320.0,0.03702933]
[1760653307842,0.1846381,108320.0,108310.0,0.18465515]
[1760653308048,0.47256746,108330.0,108310.0,0.18465515]
[1760653309460,0.1846381,108320.0,108310.0,0.18465515]
[1760653309639,0.1846381,108320.0,108300.0,0.19390581]
[1760653309842,0.1846381,108320.0,108310.0,0.18465515]
[1760653310858,0.18465515,108310.0,108300.0,0.27436093]
[1760653311294,0.18465515,108310.0,108300.0,0.1846722]
[1760653313773,0.22286623,108320.0,108300.0,0.1846722]
[1760653314800,0.22286623,108320.0,108310.0,0.18465515]
[1760653315973,0.03822813,108320.0,108310.0,0.18465515]
[1760653316183,1.00175068,108330.0,108310.0,0.18465515]
[1760653316379,1.00175068,108330.0,108310.0,0.26861192]
[1760653316617,0.1846381,108320.0,108310.0,0.26861192]
[1760653317414,1.00175068,108330.0,108310.0,0.26861192]
[1760653317626,1.00175068,108330.0,108310.0,0.6743708]
[1760653317826,1.34175068,108330.0,108320.0,0.1846381]
[1760653318047,1.34175068,108330.0,108310.0,0.6743708]
[1760653319382,1.34175068,108330.0,108310.0,0.26861192]
[1760653319944,0.1846381,108320.0,108310.0,0.26861192]
[1760653320900,0.1846381,108320.0,108310.0,0.18465515]
[1760653321838,0.1846381,108320.0,108300.0,0.19390581]
[1760653322049,0.18465515,108310.0,108290.0,0.21224067]
[1760653322269,0.18465515,108310.0,108290.0,0.30193079]
[1760653322412,0.18465515,108310.0,108290.0,0.28353406]
[1760653322624,0.18465515,108310.0,108300.0,0.1846722]
[1760653322849,0.1846722,108300.0,108280.0,0.18466371]
[1760653323050,0.18468926,108290.0,108280.0,0.18470631]
[1760653323461,0.19390581,108300.0,108290.0,0.18468926]
[1760653323462,0.21384952,108300.0,108290.0,0.18468926]
[1760653323664,0.19390581,108300.0,108290.0,0.18468926]
[1760653324066,0.19390581,108300.0,108280.0,0.18470631]
[1760653324304,0.18468926,108290.0,108280.0,0.18470631]
[1760653324458,0.18769835,108300.0,108280.0,0.22440476]
[1760653324670,0.16776181,108300.0,108290.0,0.18468926]
[1760653325470,0.16776181,108300.0,108280.0,0.22440476]
[1760653325688,0.18468926,108290.0,108280.0,0.18470605]
[1760653326088,0.68468926,108290.0,108280.0,0.18470605]
[1760653328211,0.5,108290.0,108280.0,0.18470605]
[1760653329729,0.5,108290.0,108280.0,0.73547035]
[1760653331704,0.5,108290.0,108280.0,0.73647035]
[1760653332114,0.5,108290.0,108280.0,0.82615243]
[1760653332969,0.5,108290.0,108280.0,1.28722661]
[1760653333178,0.5,108290.0,108280.0,0.82615243]
[1760653334214,0.5,108290.0,108280.0,0.36507825]
[1760653334617,0.5,108290.0,108280.0,0.82615243]
[1760653335561,0.5,108290.0,108280.0,0.36507825]
[1760653336212,0.5,108290.0,108280.0,0.36407825]
[1760653336633,0.5,108290.0,108280.0,0.36507825]
[1760653336874,0.5,108290.0,108280.0,0.82615243]
[1760653337279,0.5,108290.0,108280.0,0.36507825]
[1760653339262,0.5,108290.0,108280.0,0.82615243]
[1760653339481,0.5,108290.0,108280.0,0.36507825]
[1760653339682,0.5,108290.0,108280.0,1.17675875]
[1760653344440,0.81116242,108290.0,108280.0,1.17675875]
[1760653353922,0.320043,108290.0,108280.0,1.61878128]
[1760653354316,0.320043,108290.0,108280.0,1.21294103]
[1760653354679,0.320043,108290.0,108280.0,1.30606103]
[1760653355080,0.320043,108290.0,108280.0,1.21294103]
[1760653355286,0.320043,108290.0,108280.0,1.30606103]
[1760653355479,0.320043,108290.0,108280.0,1.17675875]
[1760653355683,0.320043,108290.0,108280.0,0.36507825]
[1760653355897,0.320043,108290.0,108280.0,1.26887875]
[1760653356108,0.320043,108290.0,108280.0,0.7709185]
[1760653357114,0.320043,108290.0,108280.0,1.17675875]
[1760653361262,0.50473226,108290.0,108280.0,0.18570631]
[1760653361490,0.50473226,108290.0,108280.0,0.001]
[1760653361881,0.50473226,108290.0,108280.0,0.18570631]
[1760653362576,0.50473226,108290.0,108280.0,0.18470631]
[1760653363029,0.50473226,108290.0,108280.0,0.18570631]
[1760653363233,0.18470631,108280.0,108270.0,0.59972434]
[1760653363439,0.18470631,108280.0,108270.0,0.77909654]
[1760653363647,0.50473226,108290.0,108270.0,0.28356617]
[1760653363874,0.18470631,108280.0,108270.0,0.19388409]
[1760653364084,0.18470631,108280.0,108270.0,0.18472337]
[1760653364701,0.21708854,108280.0,108270.0,0.18572337]
[1760653365862,0.21708854,108280.0,108270.0,0.18472337]
[1760653366287,0.18472337,108270.0,108260.0,0.18473293]
[1760653366475,0.18472337,108270.0,108260.0,0.35474575]
[1760653366677,0.21708854,108280.0,108260.0,0.27442305]
[1760653367246,0.21708854,108280.0,108270.0,0.18472337]
[1760653367597,0.03238223,108280.0,108270.0,0.18472337]
[1760653367823,0.56166997,108290.0,108270.0,0.18472337]
[1760653369309,0.18470631,108280.0,108270.0,0.18472337]
[1760653370674,0.03230744,108280.0,108270.0,0.18472337]
[1760653370874,0.56166997,108290.0,108270.0,0.18472337]
[1760653371276,0.18470631,108280.0,108270.0,0.23063801]
[1760653371487,0.18470631,108280.0,108270.0,0.18472337]
[1760653372700,0.21716376,108280.0,108270.0,0.18472337]
[1760653372946,0.21716376,108280.0,108260.0,0.27442305]
[1760653373099,0.52472337,108270.0,108260.0,4e-05]
[1760653373465,0.61881739,108270.0,108260.0,4e-05]
[1760653373667,0.5193318,108270.0,108260.0,4e-05]
[1760653374296,0.49942649,108270.0,108260.0,4e-05]
[1760653375744,0.51931457,108270.0,108260.0,4e-05]
[1760653376723,0.49942649,108270.0,108260.0,4e-05]
[1760653378383,0.49942649,108270.0,108260.0,0.00504]
[1760653379226,0.51929693,108270.0,108260.0,0.00504]
[1760653379434,0.49942649,108270.0,108260.0,0.00504]
[1760653380209,0.51929747,108270.0,108260.0,0.00504]
[1760653380956,0.49942649,108270.0,108260.0,0.00504]
[1760653381402,0.49942649,108270.0,108260.0,0.18978043]
[1760653381640,0.49942649,108270.0,108260.0,0.00504]
[1760653381846,0.519297,108270.0,108260.0,0.00504]
[1760653382058,1.019297,108270.0,108260.0,0.00504]
[1760653382478,0.99942649,108270.0,108260.0,0.00504]
[1760653382676,0.99942649,108270.0,108260.0,0.18978043]
[1760653383319,0.99942649,108270.0,108260.0,0.00504]
[1760653383549,1.01929772,108270.0,108260.0,0.00504]
[1760653383955,0.99942649,108270.0,108260.0,0.00504]
[1760653384093,1.01930091,108270.0,108260.0,0.18978043]
[1760653384314,0.99942649,108270.0,108260.0,0.18978043]
[1760653384515,0.99942649,108270.0,108260.0,0.00504]
[1760653384923,1.01930118,108270.0,108260.0,0.00504]
[1760653386763,1.01930118,108270.0,108260.0,0.18978043]
[1760653386964,1.01930118,108270.0,108260.0,0.08311145]
[1760653387591,1.01930118,108270.0,108260.0,0.00504]
[1760653392059,1.01930118,108270.0,108260.0,0.18978043]
[1760653393059,1.01930118,108270.0,108260.0,0.00504]
[1760653393272,1.01930118,108270.0,108260.0,0.18978043]
[1760653394123,1.01930118,108270.0,108260.0,0.00504]
[1760653394323,1.04420371,108270.0,108260.0,0.18978043]
[1760653394525,0.51987469,108270.0,108260.0,0.63333906]
[1760653394781,0.51987469,108270.0,108260.0,0.22724219]
[1760653394921,0.70459806,108270.0,108260.0,0.22724219]
[1760653395126,0.51987469,108270.0,108260.0,0.22724219]
[1760653398918,0.51987469,108270.0,108260.0,0.22224219]
[1760653399173,0.70459806,108270.0,108260.0,0.22224219]
[1760653399975,0.70459806,108270.0,108260.0,4e-05]
[1760653400231,0.72950059,108270.0,108260.0,4e-05]
[1760653400527,1.09728139,108270.0,108260.0,4e-05]
[1760653400746,6.13947669,108270.0,108260.0,4e-05]
[1760653401620,6.08961801,108270.0,108260.0,4e-05]
[1760653401983,6.18030009,108270.0,108260.0,4e-05]
[1760653402186,6.21648237,108270.0,108260.0,4e-05]
[1760653406792,0.18477457,108240.0,108230.0,0.01391673]
[1760653407035,0.20464926,108240.0,108230.0,0.18479164]
[1760653407510,0.23243749,108240.0,108230.0,0.18479164]
[1760653407719,0.23243749,108240.0,108230.0,0.27447372]
[1760653407933,0.22954579,108250.0,108230.0,0.27447372]
[1760653408156,0.18477457,108240.0,108230.0,0.27497572]
[1760653408397,0.18477457,108240.0,108230.0,0.09018408]
[1760653408816,0.18477457,108240.0,108230.0,0.000502]
[1760653409022,0.20464926,108240.0,108230.0,0.000502]
[1760653409229,0.18477457,108240.0,108230.0,0.000502]
[1760653411465,0.18477457,108240.0,108230.0,0.18529364]
[1760653412926,0.18477457,108240.0,108230.0,0.000502]
[1760653413184,0.18477457,108240.0,108220.0,2.18091268]
[1760653413415,0.18477457,108240.0,108220.0,2.27074522]
[1760653414346,0.18477457,108240.0,108230.0,0.18479164]
[1760653415780,0.39686056,108250.0,108240.0,0.18477457]
[1760653415991,0.58161806,108250.0,108240.0,0.18477457]
[1760653416912,0.18477457,108240.0,108230.0,0.18479164]
[1760653417142,0.18477457,108240.0,108230.0,0.21334051]
[1760653421258,0.58161806,108250.0,108230.0,0.21334051]
[1760653421456,0.18477457,108240.0,108230.0,0.21334051]
[1760653422280,0.5538307,108250.0,108230.0,0.21334051]
[1760653422710,0.18477457,108240.0,108230.0,0.21334051]
[1760653425372,0.18477457,108240.0,108230.0,0.02854887]
[1760653425571,0.18477457,108240.0,108230.0,0.18479164]
[1760653427594,0.5538307,108250.0,108230.0,0.18479164]
[1760653427790,0.18477457,108240.0,108230.0,0.18479164]
[1760653430977,0.18477457,108240.0,108220.0,2.59668181]
[1760653431130,0.18477457,108240.0,108230.0,0.18479164]
[1760653437213,0.18477457,108240.0,108230.0,0.17996476]
[1760653438433,0.5538307,108250.0,108230.0,0.17996476]
[1760653438662,0.18477457,108240.0,108220.0,2.27998565]
[1760653438924,0.18477457,108240.0,108230.0,0.18479164]
[1760653439143,0.18477457,108240.0,108230.0,0.21334051]
[1760653443386,0.18477457,108240.0,108230.0,0.02854887]
[1760653443704,0.18477457,108240.0,108230.0,0.21334051]
[1760653448393,0.18477457,108240.0,108230.0,0.18479164]
[1760653454702,0.18477457,108240.0,108220.0,2.19030357]
[1760653455010,0.18479164,108230.0,108220.0,2.19030357]
[1760653455410,0.20469038,108240.0,108220.0,2.19030357]
[1760653455541,0.18477457,108240.0,108220.0,2.19030357]
[1760653455753,0.53441723,108250.0,108220.0,2.27998565]
[1760653455953,0.18477457,108240.0,108220.0,2.27998565]
[1760653456647,0.18477457,108240.0,108230.0,0.18479164]
[1760653456852,0.18477457,108240.0,108220.0,2.27998565]
[1760653457047,0.18477457,108240.0,108230.0,0.18479164]
[1760653457334,0.18477457,108240.0,108230.0,0.21334051]
[1760653457763,0.53441723,108250.0,108230.0,0.21334051]
[1760653457965,0.18477457,108240.0,108230.0,0.21334051]
[1760653459361,0.18477457,108240.0,108220.0,2.19030357]
[1760653459580,0.18477457,108240.0,108220.0,2.27999369]
[1760653461148,0.18479164,108230.0,108220.0,1.99626558]
[1760653461362,0.18479164,108230.0,108220.0,2.1810743]
[1760653462715,0.20469038,108240.0,108220.0,2.1810743]
[1760653462916,0.18477457,108240.0,108230.0,0.18479164]
[1760653463511,0.18477457,108240.0,108220.0,2.27075638]
[1760653463976,0.18477457,108240.0,108230.0,0.18479164]
[1760653464376,0.18477457,108240.0,108220.0,2.27075638]
[1760653464582,0.18477457,108240.0,108230.0,0.18479164]
[1760653465015,0.18479164,108230.0,108220.0,2.27075638]
[1760653466750,0.20469038,108240.0,108220.0,2.27075638]
[1760653466948,0.023404,108230.0,108220.0,2.27075638]
[1760653467095,0.18477457,108240.0,108220.0,2.27075638]
[1760653467475,0.18477457,108240.0,108230.0,0.18479164]
[1760653468317,0.18479164,108230.0,108220.0,2.27075638]
[1760653468622,0.20469038,108240.0,108230.0,0.18479164]
[1760653468830,0.18477457,108240.0,108230.0,0.18479164]
[1760653469887,0.18479164,108230.0,108220.0,2.1810743]
[1760653470189,0.18479164,108230.0,108220.0,1.99626558]
[1760653470364,0.18479164,108230.0,108220.0,2.1810743]
[1760653472018,0.22855785,108240.0,108220.0,2.1810743]
[1760653472150,0.20864204,108240.0,108220.0,2.27075638]
[1760653474137,0.55931199,108250.0,108240.0,0.18477457]
[1760653474504,0.53441723,108250.0,108240.0,0.18477457]
[1760653474705,0.53441723,108250.0,108230.0,0.18479164]
[1760653474877,0.55787331,108250.0,108230.0,0.2032708]
[1760653475081,0.55787331,108250.0,108230.0,0.23181967]
[1760653475289,0.55887331,108250.0,108230.0,0.21334051]
[1760653476068,0.18477457,108240.0,108230.0,0.21334051]
[1760653482725,0.18477457,108240.0,108230.0,0.70940887]
[1760653482726,0.02778512,108240.0,108230.0,0.70940887]
[1760653482951,0.18474139,108260.0,108250.0,0.1847575]
[1760653483327,0.18474139,108260.0,108250.0,0.03695165]
[1760653483533,0.21252327,108260.0,108250.0,0.03695165]
[1760653484183,0.21252327,108260.0,108250.0,0.22170915]
[1760653484386,0.23580757,108260.0,108250.0,0.22170915]
[1760653484540,0.23680757,108260.0,108250.0,0.22170915]
[1760653485551,0.23680661,108260.0,108250.0,0.22170915]
[1760653485937,0.02878188,108260.0,108250.0,0.22170915]
[1760653486123,0.21352231,108260.0,108250.0,0.22170915]
[1760653486330,0.02878188,108260.0,108250.0,0.22170915]
[1760653486719,0.02878188,108260.0,108250.0,0.62808739]
[1760653486910,0.001,108260.0,108250.0,0.71777751]
[1760653487401,0.52777779,108270.0,108260.0,0.18474043]
[1760653487553,0.52777779,108270.0,108260.0,0.23747086]
[1760653488561,0.52777779,108270.0,108260.0,0.23762132]
[1760653489000,0.71250116,108270.0,108260.0,0.23762132]
[1760653489241,0.52777779,108270.0,108260.0,0.23762132]
[1760653490359,0.52777779,108270.0,108260.0,0.64372238]
[1760653490725,0.52777779,108270.0,108260.0,0.23762132]
[1760653497031,0.71250116,108270.0,108260.0,0.00015046]
[1760653497869,0.71250116,108270.0,108260.0,0.18489089]
[1760653498090,0.71250116,108270.0,108260.0,0.00015046]
[1760653498639,0.71250116,108270.0,108260.0,0.18489089]
[1760653499798,0.71250116,108270.0,108260.0,0.00015046]
[1760653500001,0.71250116,108270.0,108260.0,0.18489089]
[1760653500395,0.71250116,108270.0,108260.0,0.00015046]
[1760653501310,0.71250116,108270.0,108260.0,0.18489089]
[1760653501489,0.71250116,108270.0,108260.0,0.00015046]
[1760653501896,0.71250116,108270.0,108260.0,0.18489089]
[1760653502107,0.71250116,108270.0,108260.0,0.00015046]
[1760653504754,0.71250116,108270.0,108260.0,0.18489089]
[1760653506832,0.48462052,108270.0,108260.0,0.18489089]
[1760653506990,0.29989715,108270.0,108260.0,0.18489089]
[1760653507363,0.29989715,108270.0,108260.0,0.22185512]
[1760653508339,0.29989715,108270.0,108260.0,0.62795618]
[1760653508545,0.29989715,108270.0,108260.0,0.7176463]
[1760653509929,0.27211936,108270.0,108260.0,0.7176463]
[1760653510453,0.27211936,108270.0,108260.0,0.8107663]
[1760653510666,0.27211936,108270.0,108260.0,0.84694858]
[1760653510860,0.27211936,108270.0,108260.0,0.75382858]
[1760653511036,0.27211936,108270.0,108260.0,0.87472084]
[1760653511675,0.27211936,108270.0,108260.0,1.21572084]
[1760653511893,0.27211936,108270.0,108260.0,1.21472084]
[1760653512099,0.27211936,108270.0,108260.0,6.21472084]
[1760653512297,0.27211936,108270.0,108260.0,6.21572084]
[1760653512501,0.27211936,108270.0,108260.0,6.6218219]
[1760653512697,0.820043,108290.0,108280.0,0.18470631]
[1760653512924,0.820043,108290.0,108280.0,0.76176421]
[1760653513420,0.820043,108290.0,108280.0,0.35566315]
[1760653514812,1.00473226,108290.0,108280.0,0.35566315]
[1760653515814,0.820043,108290.0,108280.0,0.35566315]
[1760653516651,1.00473226,108290.0,108280.0,0.08969012]
[1760653516845,1.00473226,108290.0,108280.0,0.27439643]
[1760653518387,1.03250323,108290.0,108280.0,0.27439643]
[1760653518593,1.03250323,108290.0,108280.0,0.08969012]
[1760653518769,0.18470631,108280.0,108260.0,0.56190017]
[1760653518952,1.06164474,108290.0,108270.0,0.27441349]
[1760653519159,1.03387429,108290.0,108270.0,0.27441349]
[1760653519456,1.03387429,108290.0,108280.0,0.18470631]
[1760653519668,1.01396672,108290.0,108280.0,0.18470631]
[1760653520092,1.04173962,108290.0,108280.0,0.18470631]
[1760653520248,1.04173962,108290.0,108270.0,0.27441349]
[1760653520444,0.18470631,108280.0,108270.0,0.31613961]
[1760653520688,1.06164677,108290.0,108280.0,0.18470631]
[1760653520952,1.04173962,108290.0,108280.0,0.18470631]
[1760653522840,1.06164549,108290.0,108280.0,0.18470631]
[1760653525310,0.18470631,108280.0,108270.0,0.15212457]
[1760653525498,0.18470631,108280.0,108270.0,0.24715782]
[1760653525635,1.06164549,108290.0,108270.0,0.24715782]
[1760653525850,0.18470631,108280.0,108270.0,0.24715782]
[1760653526036,1.06164549,108290.0,108270.0,0.24715782]
[1760653527295,1.03387259,108290.0,108270.0,0.24715782]
[1760653527695,0.02777406,108280.0,108270.0,0.24715782]
[1760653529227,0.21248037,108280.0,108270.0,0.24715782]
[1760653530218,0.18472337,108270.0,108260.0,0.00015046]
[1760653530469,0.18472337,108270.0,108260.0,0.27458101]
[1760653530620,0.2046227,108280.0,108270.0,0.18472337]
[1760653530818,0.18470631,108280.0,108270.0,0.18472337]
[1760653531266,0.21248199,108280.0,108270.0,0.18472337]
[1760653531650,0.21248199,108280.0,108270.0,0.23075381]
[1760653533496,0.21248199,108280.0,108270.0,0.25112216]
[1760653533895,0.23370527,108280.0,108270.0,0.25112216]
[1760653534961,1.23370527,108280.0,108270.0,0.25112216]
[1760653535728,1.02777568,108280.0,108270.0,0.25112216]
[1760653536546,1.02777568,108280.0,108270.0,0.74691334]
[1760653536955,1.02777568,108280.0,108270.0,0.34081228]
[1760653538251,1.02777568,108280.0,108270.0,0.74691334]
[1760653538439,1.0,108280.0,108270.0,0.74691334]
[1760653539068,1.0,108280.0,108270.0,0.34081228]
[1760653540590,1.02777231,108280.0,108270.0,0.34081228]
[1760653540796,1.0,108280.0,108270.0,0.34081228]
[1760653541015,1.0,108280.0,108270.0,0.34181228]
[1760653542136,1.18470631,108280.0,108270.0,0.001]
[1760653542334,1.20465642,108280.0,108270.0,0.001]
[1760653542488,1.23243313,108280.0,108270.0,0.001]
[1760653542687,1.20465642,108280.0,108270.0,0.001]
[1760653543480,0.18472337,108270.0,108260.0,0.00015046]
[1760653543723,0.18472337,108270.0,108260.0,0.18489089]
[1760653544464,0.18472337,108270.0,108260.0,0.22277948]
[1760653549121,1.20465642,108280.0,108260.0,0.22277948]
[1760653549325,1.01995011,108280.0,108270.0,0.18472337]
[1760653549522,1.18470631,108280.0,108270.0,0.18472337]
[1760653550067,0.95749492,108280.0,108270.0,0.18472337]
[1760653550339,0.95749492,108280.0,108270.0,0.26506573]
[1760653550686,0.95749492,108280.0,108270.0,0.18472337]
[1760653551358,0.77278861,108280.0,108270.0,0.18472337]
[1760653552746,0.95749492,108280.0,108270.0,0.18472337]
[1760653552950,0.77278861,108280.0,108270.0,0.18472337]
[1760653553634,0.77278861,108280.0,108270.0,0.68051021]
[1760653553850,0.77278861,108280.0,108270.0,0.77019229]
[1760653557023,0.77278861,108280.0,108270.0,0.36409557]
[1760653557250,0.77278861,108280.0,108270.0,0.86327229]
[1760653557579,0.77278861,108280.0,108270.0,0.77019229]
[1760653557780,0.77278861,108280.0,108270.0,0.86327229]
[1760653558215,0.77278861,108280.0,108270.0,0.77019229]
[1760653558418,0.77278861,108280.0,108270.0,0.86327229]
[1760653558630,0.77278861,108280.0,108270.0,1.30555129]
[1760653559524,0.77278861,108280.0,108270.0,0.89945457]
[1760653559727,0.77278861,108280.0,108270.0,0.90045457]
[1760653560908,0.77278861,108280.0,108270.0,1.64655129]
[1760653561511,0.17428733,108280.0,108270.0,6.70456921]
[1760653561733,0.17428733,108280.0,108270.0,6.55686921]
[1760653562171,0.17428733,108280.0,108270.0,6.46378921]
[1760653562344,0.17428733,108280.0,108270.0,6.55686921]
[1760653562735,0.17428733,108280.0,108270.0,6.46378921]
[1760653563071,1e-08,108280.0,108270.0,6.96196593]
[1760653563302,1e-08,108280.0,108270.0,6.55586921]
[1760653563425,1e-08,108280.0,108270.0,6.55686921]
[1760653563634,1e-08,108280.0,108270.0,6.46378921]
[1760653563834,1e-08,108280.0,108270.0,6.55682921]
[1760653564318,1e-08,108280.0,108270.0,6.55582921]
[1760653564862,1e-08,108280.0,108270.0,6.46278921]
[1760653565299,1e-08,108280.0,108270.0,6.55582921]
[1760653565504,1e-08,108280.0,108270.0,6.55682921]
[1760653565719,1e-08,108280.0,108270.0,6.46378921]
[1760653565924,0.64665839,108290.0,108280.0,1.33689975]
[1760653566200,0.64665839,108290.0,108280.0,1.51962987]
[1760653566973,0.64665839,108290.0,108280.0,1.42658987]
[1760653567186,0.64665839,108290.0,108280.0,1.52062987]
[1760653567588,0.64665839,108290.0,108280.0,1.42758987]
[1760653568654,0.64665839,108290.0,108280.0,1.52062987]
[1760653569063,0.64665839,108290.0,108280.0,0.70843643]
[1760653569201,0.64665839,108290.0,108280.0,1.52062987]
[1760653569754,0.64665839,108290.0,108280.0,1.5413254]
[1760653570520,0.64665839,108290.0,108280.0,1.4482854]
[1760653570718,0.64665839,108290.0,108280.0,1.5413254]
[1760653573472,0.64665839,108290.0,108280.0,0.72913196]
[1760653573679,0.64665839,108290.0,108280.0,1.5413254]
[1760653573886,0.64665839,108290.0,108280.0,1.4482854]
[1760653574086,0.64665839,108290.0,108280.0,1.5413254]
[1760653574676,0.64665839,108290.0,108280.0,1.4482854]
[1760653574873,0.64665839,108290.0,108280.0,1.5413254]
[1760653577054,0.64665839,108290.0,108280.0,1.4482854]
[1760653577279,0.64665839,108290.0,108280.0,1.5413254]
[1760653578687,0.64665839,108290.0,108280.0,1.4482854]
[1760653578885,0.64665839,108290.0,108280.0,1.5413254]
[1760653579240,0.64665839,108290.0,108280.0,1.4482854]
[1760653579442,0.64665839,108290.0,108280.0,1.6890254]
[1760653579877,0.64665839,108290.0,108280.0,0.78379196]
[1760653580089,0.64665839,108290.0,108280.0,0.87683196]
[1760653580252,0.64665839,108290.0,108280.0,1.6890254]
[1760653583396,0.64665839,108290.0,108280.0,2.0382644]
[1760653583604,0.64665839,108290.0,108280.0,7.1313044]
[1760653584032,0.64665839,108290.0,108280.0,1.63216768]
[1760653584542,0.64665839,108290.0,108280.0,1.72520768]
[1760653584933,0.64665839,108290.0,108280.0,1.63216768]
[1760653585149,0.64665839,108290.0,108280.0,6.63216768]
[1760653585355,0.64665839,108290.0,108280.0,6.72520768]
[1760653587601,0.64665839,108290.0,108280.0,7.1313044]
[1760653587962,0.64665839,108290.0,108280.0,7.16263704]
[1760653589399,0.64665839,108290.0,108280.0,6.66350032]
[1760653589613,0.64665839,108290.0,108280.0,6.72520768]
[1760653590087,0.64665839,108290.0,108280.0,6.63216768]
[1760653590264,0.64665839,108290.0,108280.0,6.72520768]
[1760653592741,0.64665839,108290.0,108280.0,7.0382644]
[1760653592931,0.64665839,108290.0,108280.0,7.1313044]
[1760653593753,0.64665839,108290.0,108280.0,6.72520768]
[1760653594824,0.64665839,108290.0,108280.0,6.63216768]
[1760653594991,0.64665839,108290.0,108280.0,6.72520768]
[1760653597491,0.59402539,108290.0,108280.0,7.0382644]
[1760653597708,0.59402539,108290.0,108280.0,7.16259704]
[1760653598229,0.59402539,108290.0,108280.0,6.82259704]
[1760653598617,0.59402539,108290.0,108280.0,6.39580479]
[1760653599032,0.16457381,108290.0,108280.0,6.80190151]
[1760653599434,0.16457381,108290.0,108280.0,6.77056887]
[1760653599620,0.16457381,108290.0,108280.0,6.27147215]
[1760653599826,0.16457381,108290.0,108280.0,6.36447215]
[1760653601572,0.16457381,108290.0,108280.0,6.27147215]
[1760653601971,0.16457381,108290.0,108280.0,0.82919315]
[1760653602187,0.16457381,108290.0,108280.0,1.32828987]
[1760653602388,0.16457381,108290.0,108280.0,1.25393069]
[1760653602604,0.63677861,108290.0,108280.0,1.22207984]
[1760653603048,0.63677861,108290.0,108280.0,1.01212848]
[1760653603254,0.63677861,108290.0,108280.0,1.10523069]
[1760653603459,0.63677861,108290.0,108280.0,1.19823069]
[1760653603622,0.80304955,108290.0,108280.0,1.19823069]
[1760653604263,0.58689946,108290.0,108280.0,1.19823069]
[1760653604461,0.58689946,108290.0,108280.0,1.10523069]
[1760653604676,0.58689946,108290.0,108280.0,1.19823069]
[1760653605326,0.58689946,108290.0,108280.0,1.10523069]
[1760653605542,0.58689946,108290.0,108280.0,1.19823069]
[1760653606561,0.58689946,108290.0,108280.0,1.10523069]
[1760653606713,0.58689946,108290.0,108280.0,1.19823069]
[1760653607140,0.41189293,108290.0,108280.0,1.19823069]
[1760653608731,0.41189563,108290.0,108280.0,1.19823069]
[1760653609132,0.41189563,108290.0,108280.0,1.09834961]
[1760653609551,0.41189563,108290.0,108280.0,1.00534961]
[1760653609779,0.41189563,108290.0,108280.0,1.09834961]
[1760653611043,0.41189563,108290.0,108280.0,0.82610055]
[1760653611245,0.41189563,108290.0,108280.0,1.10380686]
[1760653611447,0.41189563,108290.0,108280.0,0.69741943]
[1760653611674,0.24562469,108290.0,108280.0,0.69741943]
[1760653611936,0.24562469,108290.0,108280.0,0.60441943]
[1760653612123,0.24562469,108290.0,108280.0,0.69741943]
[1760653612305,0.24562469,108290.0,108280.0,0.29161342]
[1760653612832,0.24562469,108290.0,108280.0,0.23558266]
[1760653613036,0.24562469,108290.0,108280.0,0.1107314]
[1760653613236,0.24562469,108290.0,108280.0,0.29658638]
[1760653613398,0.41189563,108290.0,108280.0,0.29658638]
[1760653615246,0.41189563,108290.0,108280.0,0.19670576]
[1760653616768,0.41189563,108290.0,108280.0,0.10370576]
[1760653616976,0.41189563,108290.0,108280.0,0.19670576]
[1760653617560,0.41189563,108290.0,108280.0,0.14676561]
[1760653617763,0.41189563,108290.0,108280.0,0.1649362]
[1760653617933,0.41189563,108290.0,108280.0,0.0719362]
[1760653618319,0.41189563,108290.0,108280.0,0.1649362]
[1760653619036,0.24562469,108290.0,108280.0,0.093]
[1760653619242,0.24562469,108290.0,108280.0,0.11132434]
[1760653620003,0.24562469,108290.0,108280.0,0.29603065]
[1760653620301,0.24562469,108290.0,108280.0,0.70183666]
[1760653620549,0.24562469,108290.0,108280.0,5.76669641]
[1760653621077,0.24562469,108290.0,108280.0,5.66682072]
[1760653621560,1e-08,108290.0,108280.0,5.66682072]
[1760653621744,1e-08,108290.0,108280.0,5.81452072]
[1760653621954,1e-08,108290.0,108280.0,5.87361021]
[1760653622317,1e-08,108290.0,108280.0,5.48641303]
[1760653622650,0.34,108310.0,108300.0,0.10977206]
[1760653622817,0.34,108310.0,108300.0,0.29246218]
[1760653623019,0.34,108310.0,108300.0,0.16762863]
[1760653623242,0.34,108310.0,108300.0,0.35230083]
[1760653623440,0.26603088,108320.0,108310.0,0.18465515]
[1760653623605,0.26603088,108320.0,108310.0,0.27434527]
[1760653623802,0.60653279,108320.0,108310.0,0.27434527]
[1760653624123,0.38241921,108320.0,108310.0,0.27434527]
[1760653625392,0.38241921,108320.0,108310.0,0.27534527]
[1760653626361,0.78814784,108320.0,108310.0,0.27534527]
[1760653626548,0.38241921,108320.0,108310.0,0.27534527]
[1760653626776,0.78814784,108320.0,108310.0,0.27534527]
[1760653627256,0.44814784,108320.0,108310.0,0.17548098]
[1760653627531,0.78814784,108320.0,108310.0,0.17548098]
[1760653628265,0.44814784,108320.0,108310.0,0.17548098]
[1760653630009,0.56439051,108320.0,108310.0,0.17548098]
[1760653630576,0.15866188,108320.0,108310.0,0.17548098]
[1760653631605,0.04241921,108320.0,108310.0,0.17548098]
[1760653632235,0.44814784,108320.0,108310.0,0.17548098]
[1760653632615,0.44814784,108320.0,108310.0,0.0157919]
[1760653633079,0.44814784,108320.0,108310.0,0.07561667]